bitfinex-derivatives/quotes_SOLF0:USTF0_20250816
["timestamp","ask_amount","ask_price","bid_price","bid_amount"]
[1755347778704,3.90150285,186.45,186.42,2.97]
[1755347778906,1.81,186.48,186.42,2.97]
[1755347779101,1.81,186.45,186.43,3.16]
[1755347779807,3.90037598,186.44,186.43,3.16]
[1755347780009,1.81,186.46,186.43,3.16]
[1755347780212,3.90053845,186.45,186.44,3.16]
[1755347781809,360.46,186.52,186.41,2.90226801]
[1755347782014,1.81,186.47,186.41,2.90226801]
[1755347782214,5.71013496,186.46,186.44,3.16]
[1755347782416,360.46,186.52,186.44,3.16]
[1755347782612,1.81,186.45,186.41,2.90226801]
[1755347782818,3.89973611,186.44,186.42,3.16]
[1755347783019,1.81,186.5,186.42,3.16]
[1755347783319,1.81,186.48,186.42,3.16]
[1755347783519,1.81,186.46,186.42,3.16]
[1755347783819,3.90000658,186.45,186.42,3.16]
[1755347784117,3.90000658,186.45,186.44,3.16]
[1755347784308,3.90000658,186.47,186.45,3.16]
[1755347784513,5.71000658,186.47,186.45,3.16]
[1755347784817,5.71000658,186.46,186.45,3.16]
[1755347785707,5.71000658,186.46,186.38,2.90226801]
[1755347785913,5.71000658,186.45,186.39,3.16]
[1755347786108,1.81,186.45,186.39,3.16]
[1755347786617,3.89842108,186.44,186.39,3.16]
[1755347786919,5.70842108,186.43,186.39,3.16]
[1755347787119,1.81,186.49,186.39,3.16]
[1755347787308,5.70884131,186.48,186.39,3.16]
[1755347787508,3.89884131,186.47,186.4,5.361]
[1755347787707,3.89884131,186.47,186.41,3.16]
[1755347788114,3.89884131,186.47,186.41,6.06226801]
[1755347788314,3.89884131,186.47,186.42,3.16]
[1755347788517,5.70884131,186.47,186.42,3.16]
[1755347788720,1.81,186.47,186.42,3.16]
[1755347789615,376.54,186.52,186.42,3.16]
[1755347789821,1.81,186.5,186.42,3.16]
[1755347790017,1.81,186.48,186.42,3.16]
[1755347790217,1.81,186.45,186.43,3.16]
[1755347790412,1.81,186.45,186.44,3.16]
[1755347790712,5.70783118,186.45,186.44,3.16]
[1755347790918,5.70783118,186.45,186.39,3.16]
[1755347791120,1.81,186.45,186.39,3.16]
[1755347791917,3.89775485,186.44,186.39,3.16]
[1755347792118,1.81,186.44,186.39,3.16]
[1755347793121,16.08,186.51,186.39,3.16]
[1755347793316,1.81,186.46,186.39,3.16]
[1755347793620,3.90027056,186.45,186.39,3.16]
[1755347794012,3.90027056,186.45,186.4,3.16]
[1755347795228,3.90027056,186.45,186.39,3.16]
[1755347795418,1.81,186.49,186.42,3.16]
[1755347795722,3.90199035,186.48,186.42,3.16]
[1755347795921,3.90199035,186.47,186.42,3.16]
[1755347796125,3.90199035,186.46,186.42,3.16]
[1755347796319,5.71199035,186.46,186.42,3.16]
[1755347796515,1.81,186.46,186.42,3.16]
[1755347801028,1.81,186.44,186.43,3.16]
[1755347801222,1.81,186.43,186.42,3.16]
[1755347801417,1.81,186.43,186.38,2.90226801]
[1755347801621,1.81,186.43,186.39,3.16]
[1755347802528,1.81,186.49,186.39,3.16]
[1755347802826,18.98226801,186.5,186.39,3.16]
[1755347802827,1.81,186.47,186.39,3.16]
[1755347803027,1.81,186.45,186.39,3.16]
[1755347803327,1.81,186.48,186.42,3.16]
[1755347803522,3.90283574,186.47,186.42,3.16]
[1755347803725,5.71267326,186.46,186.42,3.16]
[1755347803926,1.81,186.46,186.42,3.16]
[1755347804222,1.81,186.48,186.42,3.16]
[1755347804429,5.71238469,186.47,186.42,3.16]
[1755347804629,1.81,186.47,186.42,3.16]
[1755347805231,1.81,186.51,186.42,3.16]
[1755347805431,3.90289369,186.5,186.45,3.16]
[1755347805633,3.90289369,186.49,186.45,3.16]
[1755347805933,3.90289369,186.48,186.45,3.16]
[1755347806234,1.81,186.51,186.45,3.16]
[1755347806430,3.90303676,186.5,186.45,3.16]
[1755347806636,3.90303676,186.49,186.45,3.16]
[1755347806825,360.46,186.52,186.45,3.16]
[1755347807133,1.81,186.49,186.45,3.16]
[1755347807536,1.81,186.51,186.45,3.16]
[1755347807737,3.90306846,186.5,186.45,3.16]
[1755347807938,1.81,186.51,186.45,3.16]
[1755347808233,0.93330115,186.55,186.45,3.16]
[1755347808433,5.71260284,186.53,186.45,3.16]
[1755347808633,3.90260284,186.52,186.45,3.16]
[1755347808833,3.90260284,186.51,186.45,3.16]
[1755347809034,1.81,186.53,186.46,3.11]
[1755347809239,3.90262008,186.52,186.46,3.11]
[1755347809432,3.90262008,186.51,186.46,8.4693]
[1755347809630,1.81,186.53,186.47,3.11]
[1755347809828,5.71215084,186.52,186.47,3.11]
[1755347810026,1.81,186.52,186.47,3.11]
[1755347810232,1.81,186.51,186.47,3.11]
[1755347810741,1.81,186.53,186.47,3.11]
[1755347811040,3.90223545,186.52,186.47,3.11]
[1755347811241,1.81,186.53,186.47,3.11]
[1755347811442,1.81,186.51,186.47,3.11]
[1755347811835,1.81,186.53,186.47,3.11]
[1755347812040,5.71248104,186.52,186.47,3.11]
[1755347812241,3.90301072,186.51,186.47,3.11]
[1755347812444,1.81,186.52,186.47,3.11]
[1755347812646,3.90301072,186.51,186.47,3.11]
[1755347812847,1.81,186.52,186.47,3.11]
[1755347813048,3.90301072,186.51,186.47,3.11]
[1755347813247,1.81,186.52,186.47,3.11]
[1755347813442,119.42237313,186.57,186.47,6.01226801]
[1755347813443,3.90373087,186.51,186.47,6.01226801]
[1755347813741,137.39,186.54,186.48,3.11]
[1755347813946,3.90371058,186.53,186.48,3.11]
[1755347814141,3.90371058,186.52,186.48,3.11]
[1755347814445,3.90371058,186.51,186.48,3.11]
[1755347814641,135.58,186.54,186.48,3.11]
[1755347814843,3.90487703,186.53,186.48,3.11]
[1755347815038,135.58,186.54,186.48,3.11]
[1755347815239,3.9042529,186.53,186.48,3.11]
[1755347815441,135.58,186.54,186.48,3.11]
[1755347815642,3.90472561,186.53,186.48,3.11]
[1755347815841,135.58,186.54,186.48,3.11]
[1755347816038,3.90472561,186.53,186.48,3.11]
[1755347816345,135.58,186.54,186.5,2.90226801]
[1755347816546,3.90539186,186.53,186.51,3.11]
[1755347816747,135.58,186.54,186.51,3.11]
[1755347816944,3.90539025,186.53,186.51,3.11]
[1755347817148,1.81,186.56,186.51,3.11]
[1755347817348,3.90637552,186.55,186.51,3.11]
[1755347817549,3.90637552,186.54,186.51,3.11]
[1755347817749,3.90637552,186.53,186.51,3.11]
[1755347817946,1.81,186.56,186.51,3.11]
[1755347818148,3.90631301,186.55,186.51,3.11]
[1755347818447,3.90631301,186.54,186.51,3.11]
[1755347818648,3.90631301,186.53,186.51,3.11]
[1755347818849,137.03,186.58,186.51,3.11]
[1755347819044,5.71749,186.57,186.51,3.11]
[1755347819243,5.71749,186.56,186.51,3.11]
[1755347819443,3.90749,186.55,186.51,3.11]
[1755347820251,137.03,186.58,186.51,3.11]
[1755347820450,3.90951544,186.57,186.51,3.11]
[1755347820652,3.90951544,186.56,186.51,3.11]
[1755347820853,3.90951544,186.55,186.52,3.11]
[1755347821051,1.81,186.57,186.52,3.11]
[1755347821251,1.81,186.53,186.5,3.11]
[1755347821448,5.72072318,186.52,186.48,3.11]
[1755347821647,1.81,186.52,186.48,3.11]
[1755347821855,1.81,186.51,186.48,3.11]
[1755347822953,6.30660519,186.56,186.45,3.11]
[1755347823252,4.49660519,186.54,186.45,3.11]
[1755347823444,1.81,186.52,186.45,3.11]
[1755347823641,4.49660519,186.54,186.45,3.11]
[1755347823642,3.91086937,186.51,186.45,3.11]
[1755347823843,1.81,186.48,186.45,3.11]
[1755347824248,1.81,186.53,186.45,3.11]
[1755347824453,1.81,186.51,186.45,3.11]
[1755347824651,3.91131691,186.5,186.44,2.90226801]
[1755347824951,3.91131691,186.49,186.45,3.11]
[1755347825152,1.81,186.51,186.45,3.11]
[1755347825353,5.72126553,186.5,186.45,3.11]
[1755347825553,20.57660519,186.55,186.45,3.11]
[1755347825853,1.81,186.53,186.45,3.11]
[1755347826053,1.81,186.51,186.45,3.11]
[1755347826254,5.72135625,186.5,186.45,3.11]
[1755347826454,1.81,186.5,186.45,3.11]
[1755347826947,1.81,186.49,186.45,3.11]
[1755347830655,1.81,186.48,186.45,3.11]
[1755347831152,1.81,186.52,186.45,3.11]
[1755347831348,1.81,186.5,186.44,2.90226801]
[1755347831552,3.91245457,186.49,186.46,3.11]
[1755347831851,5.72245457,186.48,186.46,3.11]
[1755347832057,4.49660519,186.53,186.44,2.90226801]
[1755347832251,3.91274364,186.52,186.45,3.11]
[1755347832555,3.91274364,186.51,186.45,3.11]
[1755347832756,3.91274364,186.5,186.47,3.11]
[1755347832959,1.81,186.51,186.47,3.11]
[1755347833256,5.72242325,186.5,186.47,3.11]
[1755347833451,1.81,186.5,186.47,3.11]
[1755347833853,3.91252205,186.49,186.48,3.11]
[1755347836057,5.72252205,186.49,186.48,3.11]
[1755347836857,1.81,186.48,186.45,3.11]
[1755347837356,1.81,186.52,186.46,3.11]
[1755347837557,3.91287419,186.51,186.46,3.11]
[1755347837750,5.72287419,186.5,186.46,3.11]
[1755347837951,3.91287419,186.49,186.46,3.11]
[1755347838349,1.81,186.51,186.46,3.11]
[1755347838561,3.91344444,186.5,186.46,3.11]
[1755347838757,3.91344444,186.49,186.46,3.11]
[1755347838957,1.81,186.51,186.46,3.11]
[1755347839159,3.91344394,186.5,186.46,3.11]
[1755347839363,3.91344394,186.49,186.46,3.11]
[1755347839659,4.49660519,186.53,186.46,3.11]
[1755347839660,1.81,186.47,186.46,3.07]
[1755347839860,1.81,186.51,186.46,3.07]
[1755347840062,5.72415598,186.5,186.46,3.07]
[1755347840261,3.91415598,186.49,186.46,3.07]
[1755347840463,3.91415598,186.48,186.46,3.07]
[1755347840663,1.81,186.5,186.46,3.07]
[1755347840963,3.91458469,186.49,186.46,3.07]
[1755347841164,1.81,186.52,186.46,3.07]
[1755347841354,1.81,186.5,186.46,3.07]
[1755347841554,3.91459436,186.49,186.46,3.07]
[1755347841758,3.91459436,186.49,186.44,2.90226801]
[1755347841759,5.72459436,186.48,186.45,3.07]
[1755347842062,1.81,186.48,186.45,3.07]
[1755347842260,1.81,186.5,186.45,3.07]
[1755347842462,3.91502343,186.49,186.45,3.07]
[1755347842758,3.91502343,186.48,186.45,3.07]
[1755347843063,1.81,186.5,186.45,3.07]
[1755347843262,3.91519493,186.49,186.45,3.07]
[1755347843462,3.91519493,186.48,186.45,3.07]
[1755347843664,1.81,186.5,186.45,3.07]
[1755347843865,3.91534409,186.49,186.45,3.07]
[1755347844067,3.91534409,186.48,186.45,3.07]
[1755347844364,1.81,186.5,186.45,3.07]
[1755347844558,5.72588063,186.49,186.45,3.07]
[1755347844862,3.91588063,186.48,186.45,3.07]
[1755347846561,6.30660519,186.52,186.45,3.07]
[1755347846764,3.91722225,186.51,186.45,3.07]
[1755347846956,3.91722225,186.5,186.46,5.3594]
[1755347847155,3.91722225,186.49,186.47,3.07]
[1755347847355,3.91722225,186.48,186.47,3.07]
[1755347847555,4.49660519,186.53,186.47,5.97226801]
[1755347847765,3.91862589,186.52,186.47,2.90226801]
[1755347847960,3.91862589,186.51,186.48,3.07]
[1755347848263,4.49660519,186.55,186.48,3.07]
[1755347848462,3.91911436,186.54,186.48,3.07]
[1755347848664,3.91911436,186.53,186.5,3.07]
[1755347848964,3.91911436,186.52,186.5,5.97226801]
[1755347849165,4.49660519,186.57,186.5,8.26026801]
[1755347849367,3.91915749,186.56,186.5,2.90226801]
[1755347849659,3.91915749,186.55,186.51,5.3579]
[1755347849864,3.91915749,186.54,186.52,3.07]
[1755347850066,141.52660519,186.58,186.52,3.07]
[1755347850266,5.72800881,186.57,186.54,3.07]
[1755347850465,3.91800881,186.56,186.54,3.07]
[1755347850764,139.71660519,186.58,186.53,5.97226801]
[1755347850765,3.91800881,186.55,186.53,5.97226801]
[1755347850966,1.81,186.53,186.51,3.07]
[1755347851167,3.91800881,186.52,186.51,3.07]
[1755347851367,4.49660519,186.56,186.51,3.07]
[1755347851368,1.81,186.56,186.51,3.07]
[1755347851570,3.91709556,186.55,186.51,3.07]
[1755347851870,3.91709556,186.54,186.51,3.07]
[1755347852063,6.30660519,186.58,186.54,3.07]
[1755347852256,3.91687496,186.57,186.54,3.07]
[1755347852456,3.91687496,186.56,186.54,3.07]
[1755347852664,3.91687496,186.55,186.54,3.07]
[1755347853768,1.81,186.54,186.52,3.07]
[1755347854269,1.81,186.54,186.53,3.07]
[1755347854470,3.91522224,186.54,186.53,3.07]
[1755347854669,3.91522224,186.54,186.53,5.97226801]
[1755347854968,1.81,186.58,186.54,3.07]
[1755347855170,1.81,186.56,186.52,3.07]
[1755347855370,1.81,186.54,186.52,3.07]
[1755347855565,3.91473407,186.53,186.5,3.07]
[1755347855872,1.81,186.51,186.48,3.07]
[1755347856072,3.91473407,186.5,186.48,3.07]
[1755347856271,1.81,186.51,186.5,3.07]
[1755347856571,5.7252984,186.51,186.5,3.07]
[1755347857072,5.7252984,186.51,186.48,3.07]
[1755347857375,1.81,186.49,186.48,3.07]
[1755347857563,3.9152984,186.49,186.41,253.16987065]
[1755347857763,4.49660519,186.53,186.32,422.26]
[1755347857764,1.81,186.47,186.42,3.07]
[1755347857963,3.9152984,186.48,186.4,3.07]
[1755347857964,1.81,186.45,186.4,3.07]
[1755347858263,3.9152984,186.44,186.42,3.07]
[1755347858463,1.81,186.45,186.42,3.07]
[1755347858773,3.91555935,186.44,186.4,3.07]
[1755347858976,1.81,186.44,186.4,3.07]
[1755347859164,3.93783517,186.43,186.4,3.07]
[1755347859471,1.81,186.46,186.4,3.07]
[1755347859666,5.74667858,186.45,186.4,3.07]
[1755347859870,5.74667858,186.44,186.4,3.07]
[1755347860072,1.81,186.47,186.41,3.07]
[1755347860371,5.74681432,186.46,186.41,3.07]
[1755347860572,3.93681432,186.45,186.41,3.07]
[1755347860774,3.93681432,186.44,186.41,3.07]
[1755347860974,1.81,186.46,186.41,3.07]
[1755347861169,3.93576562,186.45,186.41,3.07]
[1755347861371,1.81,186.48,186.41,3.07]
[1755347861586,3.93522338,186.47,186.43,3.07]
[1755347861768,6.30660519,186.51,186.45,2.90226801]
[1755347861769,1.81,186.51,186.45,2.90226801]
[1755347861968,5.74464641,186.5,186.46,3.07]
[1755347862172,3.93464641,186.49,186.46,3.07]
[1755347862374,3.93464641,186.48,186.45,2.90226801]
[1755347862578,1.81,186.49,186.47,3.07]
[1755347862778,3.93469096,186.48,186.47,3.07]
[1755347865980,6.30660519,186.53,186.47,3.07]
[1755347866177,5.75406428,186.52,186.47,3.07]
[1755347866376,5.75406428,186.51,186.47,3.07]
[1755347866576,3.94406428,186.5,186.47,3.07]
[1755347867982,1.81,186.53,186.49,3.07]
[1755347868179,3.94416328,186.52,186.49,3.07]
[1755347868386,3.94416328,186.51,186.49,3.07]
[1755347868682,1.81,186.53,186.49,3.07]
[1755347868883,3.94401161,186.52,186.49,3.07]
[1755347869084,3.94401161,186.51,186.49,3.07]
[1755347869287,1.81,186.52,186.49,3.07]
[1755347869481,3.94397382,186.51,186.49,3.07]
[1755347869674,1.81,186.52,186.49,3.07]
[1755347869877,3.94411002,186.51,186.48,2.90226801]
[1755347870083,3.94411002,186.5,186.49,2.88]
[1755347870481,5.75411002,186.5,186.48,2.88]
[1755347870687,1.81,186.49,186.48,2.88]
[1755347870884,1.81,186.54,186.48,2.88]
[1755347871088,1.81,186.52,186.49,2.88]
[1755347871286,5.75409201,186.51,186.49,2.88]
[1755347871486,3.94409201,186.5,186.49,2.88]
[1755347873185,1.81,186.53,186.49,2.88]
[1755347873388,3.94398622,186.52,186.49,2.88]
[1755347873688,3.94398622,186.51,186.49,2.88]
[1755347873884,1.81,186.52,186.49,2.88]
[1755347874182,3.94395164,186.51,186.49,2.88]
[1755347874382,1.81,186.54,186.49,2.88]
[1755347874586,1.81,186.52,186.49,2.88]
[1755347874787,3.94391952,186.51,186.49,2.88]
[1755347874986,3.94391952,186.51,186.5,2.88]
[1755347877185,141.12660519,186.57,186.5,2.88]
[1755347877492,3.94360705,186.56,186.5,2.88]
[1755347877795,3.94360705,186.55,186.51,2.88]
[1755347878094,3.94360705,186.54,186.51,2.88]
[1755347878292,3.94360705,186.53,186.51,2.88]
[1755347878593,141.12660519,186.57,186.51,2.88]
[1755347878594,139.31660519,186.57,186.51,2.88]
[1755347878787,1.81,186.55,186.51,2.88]
[1755347879093,3.94293292,186.54,186.51,2.88]
[1755347879292,3.94293292,186.53,186.51,2.88]
[1755347879593,1.81,186.55,186.51,2.88]
[1755347879790,3.94258578,186.54,186.51,2.88]
[1755347879989,1.81,186.55,186.51,2.88]
[1755347880189,3.94258605,186.54,186.51,2.88]
[1755347880488,5.75260642,186.53,186.51,2.88]
[1755347880793,1.81,186.53,186.52,2.88]
[1755347881489,3.94263168,186.54,186.52,5.78226801]
[1755347881691,6.30660519,186.59,186.53,2.88]
[1755347881993,3.94200364,186.58,186.53,2.88]
[1755347882189,3.94200364,186.57,186.53,2.88]
[1755347882390,3.94200364,186.56,186.53,2.88]
[1755347882596,3.94200364,186.55,186.53,2.88]
[1755347882892,1.81,186.59,186.53,2.88]
[1755347883195,3.94145072,186.58,186.53,2.88]
[1755347883397,3.94145072,186.57,186.53,2.88]
[1755347883594,3.94145072,186.56,186.53,2.88]
[1755347883893,6.30660519,186.6,186.53,2.88]
[1755347884089,3.94073268,186.59,186.53,2.88]
[1755347884297,3.94073268,186.58,186.56,2.88]
[1755347884494,6.30660519,186.62,186.56,2.88]
[1755347884691,5.74973652,186.61,186.56,2.88]
[1755347884892,3.93973652,186.6,186.56,2.88]
[1755347885194,139.15660519,186.63,186.56,2.88]
[1755347885195,5.74973652,186.59,186.56,2.88]
[1755347885384,1.81,186.59,186.56,2.88]
[1755347885788,1.81,186.62,186.56,2.88]
[1755347885994,1.81,186.6,186.56,2.88]
[1755347886187,3.93868197,186.59,186.56,2.88]
[1755347886388,1.81,186.6,186.56,2.88]
[1755347886693,3.93770237,186.59,186.56,2.88]
[1755347886995,1.81,186.6,186.56,2.88]
[1755347889388,134.66,186.63,186.56,2.88]
[1755347889594,5.74460034,186.62,186.57,2.88]
[1755347889789,3.93460034,186.61,186.57,2.88]
[1755347889999,1.81,186.61,186.57,2.88]
[1755347890602,1.81,186.59,186.56,2.88]
[1755347890995,1.81,186.58,186.56,2.88]
[1755347891900,1.81,186.57,186.56,2.88]
[1755347892101,1.81,186.62,186.56,2.88]
[1755347892302,3.93373776,186.61,186.56,2.88]
[1755347892503,1.81,186.59,186.57,2.88]
[1755347892704,3.93373776,186.58,186.57,2.88]
[1755347893001,139.15660519,186.63,186.57,2.88]
[1755347893002,1.81,186.62,186.57,2.88]
[1755347893203,3.9334504,186.61,186.57,2.88]
[1755347893404,1.81,186.62,186.57,2.88]
[1755347893603,3.93251639,186.61,186.57,2.88]
[1755347893805,1.81,186.61,186.57,2.88]
[1755347894006,1.81,186.62,186.57,2.88]
[1755347894206,3.93251639,186.61,186.57,2.88]
[1755347894396,1.81,186.61,186.57,2.88]
[1755347894704,1.81,186.62,186.57,2.88]
[1755347894905,1.81,186.6,186.56,2.90226801]
[1755347895106,1.81,186.59,186.58,2.88]
[1755347895308,1.81,186.59,186.56,2.90226801]
[1755347895500,1.81,186.59,186.57,2.88]
[1755347895701,1.81,186.62,186.57,2.88]
[1755347896012,1.81,186.6,186.57,2.88]
[1755347896212,1.81,186.58,186.57,2.88]
[1755347897412,134.66,186.63,186.57,2.88]
[1755347897616,1.81,186.59,186.58,2.88]
[1755347897810,1.81,186.59,186.54,2.88]
[1755347901521,1.8,186.62,186.56,2.90226801]
[1755347901711,3.91883269,186.61,186.57,3.07]
[1755347901914,1.8,186.62,186.57,3.07]
[1755347902117,3.91878911,186.61,186.57,3.07]
[1755347902318,1.8,186.62,186.57,3.07]
[1755347902518,3.91865297,186.61,186.57,3.07]
[1755347902818,1.8,186.62,186.57,3.07]
[1755347903021,134.66,186.63,186.57,3.07]
[1755347903318,3.91829579,186.62,186.57,3.07]
[1755347903520,134.66,186.63,186.57,3.07]
[1755347903726,5.71910476,186.62,186.57,3.07]
[1755347904018,1.8,186.62,186.57,3.07]
[1755347905020,1.8,186.61,186.57,3.07]
[1755347905216,1.8,186.58,186.57,3.07]
[1755347905420,1.8,186.58,186.53,2.90226801]
[1755347905621,1.8,186.58,186.54,3.07]
[1755347906517,1.8,186.6,186.54,3.07]
[1755347906721,3.92363479,186.59,186.54,3.07]
[1755347907022,134.66,186.63,186.54,5.3569]
[1755347907223,1.8,186.61,186.55,3.07]
[1755347907521,1.8,186.59,186.55,3.07]
[1755347907724,139.15660519,186.63,186.55,3.07]
[1755347907917,5.72429507,186.62,186.55,3.07]
[1755347908117,3.92429507,186.61,186.57,3.07]
[1755347908321,3.92429507,186.6,186.57,3.07]
[1755347908520,1.8,186.61,186.57,3.07]
[1755347908721,3.9247376,186.6,186.57,3.07]
[1755347909023,1.8,186.61,186.57,3.07]
[1755347909322,3.9247376,186.6,186.57,3.07]
[1755347909516,134.66,186.63,186.57,3.07]
[1755347909713,5.72557057,186.62,186.57,3.07]
[1755347909920,5.72557057,186.61,186.57,3.07]
[1755347910120,5.72557057,186.6,186.57,3.07]
[1755347910424,134.66,186.63,186.56,2.90226801]
[1755347910425,3.92667477,186.59,186.56,3.07]
[1755347910722,1.8,186.57,186.56,3.07]
[1755347911118,5.72730108,186.57,186.56,3.07]
[1755347911320,5.72730108,186.57,186.53,3.07]
[1755347911625,1.8,186.6,186.53,3.07]
[1755347911923,3.92776913,186.59,186.53,3.07]
[1755347912226,3.92776913,186.58,186.53,3.07]
[1755347912424,1.8,186.62,186.56,3.07]
[1755347912629,3.92786132,186.61,186.56,3.07]
[1755347912821,3.92786132,186.6,186.57,3.07]
[1755347913023,3.92786132,186.59,186.57,3.07]
[1755347913224,1.8,186.62,186.57,3.07]
[1755347913422,3.92792618,186.61,186.57,3.07]
[1755347913733,3.92792618,186.6,186.57,3.07]
[1755347913920,3.92792618,186.59,186.57,3.07]
[1755347914229,1.8,186.62,186.57,3.07]
[1755347914419,1.8,186.62,186.55,8.25906801]
[1755347914420,1.8,186.6,186.56,3.07]
[1755347914726,1.8,186.58,186.55,2.90226801]
[1755347914919,1.8,186.59,186.56,3.07]
[1755347915226,3.92922792,186.58,186.56,3.07]
[1755347915428,1.8,186.59,186.56,3.07]
[1755347915627,3.93010791,186.58,186.56,3.07]
[1755347915824,4.49660519,186.62,186.56,3.07]
[1755347916126,1.8,186.6,186.56,3.07]
[1755347916326,3.93006421,186.59,186.56,3.07]
[1755347916528,5.73006421,186.59,186.56,3.07]
[1755347916730,3.93006421,186.58,186.56,3.07]
[1755347916926,1.8,186.61,186.56,3.07]
[1755347917130,3.93088663,186.6,186.56,3.07]
[1755347917430,3.93088663,186.59,186.56,3.07]
[1755347918732,1.8,186.62,186.56,3.07]
[1755347918935,5.73274801,186.61,186.56,3.07]
[1755347919232,3.93274801,186.6,186.56,3.07]
[1755347919432,3.93274801,186.59,186.56,3.07]
[1755347919732,3.93274801,186.58,186.56,3.07]
[1755347920030,1.8,186.61,186.56,3.07]
[1755347920226,3.93378552,186.6,186.56,3.07]
[1755347920533,3.93378552,186.59,186.56,3.07]
[1755347920731,3.93378552,186.58,186.56,3.07]
[1755347920932,1.8,186.61,186.56,3.07]
[1755347921231,3.93501447,186.6,186.56,3.07]
[1755347921431,3.93501447,186.59,186.56,3.07]
[1755347921730,3.93501447,186.58,186.56,3.07]
[1755347921931,1.8,186.6,186.56,3.07]
[1755347922132,1.8,186.58,186.57,3.07]
[1755347922332,5.7364827,186.58,186.55,2.90226801]
[1755347922534,3.9364827,186.57,186.56,3.07]
[1755347923034,5.7364827,186.57,186.56,3.07]
[1755347923239,5.7364827,186.57,186.53,3.07]
[1755347923545,3.9364827,186.56,186.53,3.07]
[1755347923743,3.9364827,186.55,186.53,3.07]
[1755347923944,1.8,186.58,186.53,3.07]
[1755347924147,3.93881265,186.57,186.53,3.07]
[1755347924342,3.93881265,186.56,186.53,3.07]
[1755347924542,6.29660519,186.6,186.53,3.07]
[1755347924841,5.73955849,186.59,186.53,3.07]
[1755347925045,5.73955849,186.58,186.53,3.07]
[1755347925244,3.93955849,186.57,186.53,3.07]
[1755347925545,3.93955849,186.56,186.53,3.07]
[1755347925744,1.8,186.58,186.53,3.07]
[1755347925941,3.92187363,186.57,186.53,3.07]
[1755347926140,3.92187363,186.56,186.53,3.07]
[1755347926345,1.8,186.58,186.53,3.07]
[1755347926539,3.92352189,186.57,186.52,2.90226801]
[1755347926838,4.49660519,186.62,186.56,3.07]
[1755347927145,1.8,186.6,186.59,3.07]
[1755347927353,5.72294119,186.6,186.55,2.90226801]
[1755347927645,5.72294119,186.59,186.58,3.07]
[1755347927840,5.72294119,186.59,186.56,3.07]
[1755347928037,5.72294119,186.58,186.57,3.07]
[1755347928242,3.92294119,186.58,186.57,3.07]
[1755347929945,1.8,186.6,186.57,3.07]
[1755347930148,1.8,186.62,186.56,3.02]
[1755347930348,1.8,186.6,186.56,3.02]
[1755347930645,5.7724491,186.59,186.56,3.02]
[1755347930847,1.8,186.58,186.55,3.02]
[1755347931145,1.8,186.57,186.55,3.02]
[1755347931346,1.8,186.57,186.53,3.02]